Cogmind - Beta 15 @@@ ROGUE MODE // 2025.06.29 @ 19:23:22 Player: EX-OCT Result: Defending 0bPrime! Performance ------------- Evolutions (8) 4000 Regions Visited (21) 4200 Robots Destroyed (40) 200 Value Destroyed (1545) 1545 Prototype IDs (111) 2220 Alien Tech Used (9) 1800 Bonus (31100) 31100 TOTAL SCORE: 45065 Bonus ------- Registered with UFD 300 Met Optimus in HQ 500 Met Zhirov 300 Met Warlord at Base 500 MAIN.C Attacked Warlord 500 Destroyed Superfortress 15000 Met Optimus at Protoforge 1000 Completed Drillbomb Mission10000 Win 3000 Cogmind --------- Core Integrity 631/1450 Matter 300/300 Energy 2320/2320 System Corruption 14% Temperature Cool (0) Movement Flying (25) Location 0bPrime Parts ------- > --- POWER (2) -------- Hybrid Graviton Reactor Concept Zero-point Core > --- PROPULSION (8) --- Impulse Thruster Array Impulse Thruster Array Impulse Thruster Array Experimental Surge Thruster Experimental Surge Thruster > --- UTILITY (11) ----- Experimental Heat Sink Concept Phasing Heat Sink Experimental Coolant Injector Medium Storage Unit Concept Chromion Battery Advanced Sensor Array Advanced Signal Interpreter Experimental Reaction Control System Advanced Phase Shifter Experimental Cloaking Device > --- WEAPON (2) ------- Plasma Lance > --- INVENTORY (10) --- (None) Peak State ------------ > --- POWER ------------ Improved Quantum Reactor Hybrid Graviton Reactor > --- PROPULSION ------- Electron Diverter Improved Diametric Drive Impulse Thruster Array Impulse Thruster Array Experimental Surge Thruster Experimental Surge Thruster > --- UTILITY ---------- Experimental Heat Sink Medium Storage Unit Experimental Energy Well Spectral Analyzer Advanced Sensor Array Advanced Signal Interpreter Experimental Core Analyzer Experimental Cloaking Device Centrium Medium Armor Plating Hacking Suite System Mapper > --- WEAPON ----------- Core Cannon > --- INVENTORY -------- UFD Drillbomb [Rating: 207] Favorites ----------- Power Light Antimatter Reactor Engine Subdweller Power Source Power Core Micro Fission Core Reactor Light Antimatter Reactor Propulsion Cesium-ion Thruster Leg Experimental VSS Leg Wheel Subdweller Monowheel Hover Unit Gravmag System Flight Unit Cesium-ion Thruster Utility Hacking Suite Device Long-range Sensor Array Storage Medium Storage Unit Processor Surveybot 17 Chip Hackware Hacking Suite Protection Core Shielding Artifact Phase Redirector Weapon Chainsword Energy Gun Vortex Rifle Energy Cannon Subdweller Beam Cannon Ballistic Gun Assault Rifle Ballistic Cannon Linear Accelerator Launcher Grenade Launcher Special Weapon Improved Plasma Cutter Impact Weapon Maul Slashing Weapon Chainsword Piercing Weapon Plasma Lance Build | -11 -10 -10 -10 -7 -5 -5 -5 -5 -5 -5 -4 -4 -4 -4 -4 -3 -3 -3 -2 -2 -2 ------- Run | Yrd Mat Min Sub Scr Fac Was Fac Upp Upp War Pro Fac Upp Upp Zhi Pro Res Qua Res Tes Frg Slots Evolved 16 | . . . . . 10 . . . . . . 2 . . . . 2 . 2 . . Power 1 | . . . . . . . . . . . . . . . . . . . 1 . . Propulsion 6 | . . . . . 6 . . . . . . . . . . . . . . . . Utility 9 | . . . . . 4 . . . . . . 2 . . . . 2 . 1 . . Weapon . | . . . . . . . . . . . . . . . . . . . . . . Parts Attached 164 | 2 5 . 10 12 20 2 7 . 1 7 . 9 . 1 5 . 9 9 11 14 40 Power 16 | . . . 1 2 2 1 . . . 1 . 1 . . . . . 1 2 1 4 Engine 3 | . . . 1 1 1 . . . . . . . . . . . . . . . . Core 3 | . . . . 1 1 . . . . . . . . . . . . . . . 1 Reactor 10 | . . . . . . 1 . . . 1 . 1 . . . . . 1 2 1 3 Propulsion 57 | . 2 . 3 6 8 . 4 . . 2 . 3 . . 3 . 3 2 5 3 13 Treads . | . . . . . . . . . . . . . . . . . . . . . . Leg 4 | . . . . . . . . . . . . . . . . . . . . . 4 Wheel 9 | . . . 3 6 . . . . . . . . . . . . . . . . . Hover 5 | . . . . . 4 . 1 . . . . . . . . . . . . . . Flight 39 | . 2 . . . 4 . 3 . . 2 . 3 . . 3 . 3 2 5 3 9 Utility 66 | . 2 . 2 2 9 1 3 . 1 2 . 5 . . 2 . 4 2 4 9 18 Device 29 | . . . . 1 5 1 1 . 1 2 . 2 . . . . 1 1 1 3 10 Storage 10 | . . . 2 1 . . 1 . . . . . . . 1 . . . 1 1 3 Processor 8 | . 1 . . . 4 . . . . . . . . . . . . . . 2 1 Hackware 10 | . . . . . . . 1 . . . . 3 . . . . 2 . 1 3 . Protection 8 | . 1 . . . . . . . . . . . . . 1 . 1 . 1 . 4 Artifact 1 | . . . . . . . . . . . . . . . . . . 1 . . . Weapon 25 | 2 1 . 4 2 1 . . . . 2 . . . 1 . . 2 4 . 1 5 Energy Gun 4 | . . . . . 1 . . . . 1 . . . 1 . . . . . 1 . Energy Cannon 3 | . . . 1 . . . . . . . . . . . . . . 1 . . 1 Ballistic Gun 5 | 2 . . 1 . . . . . . . . . . . . . . . . . 2 Ballistic Cannon 1 | . . . . . . . . . . . . . . . . . . 1 . . . Launcher 1 | . . . 1 . . . . . . . . . . . . . . . . . . Special Weapon 2 | . . . . 1 . . . . . 1 . . . . . . . . . . . Impact Weapon 2 | . 1 . 1 . . . . . . . . . . . . . . . . . . Slashing Weapon 4 | . . . . 1 . . . . . . . . . . . . 1 2 . . . Piercing Weapon 3 | . . . . . . . . . . . . . . . . . 1 . . . 2 Special Melee Weapon . | . . . . . . . . . . . . . . . . . . . . . . Unidentified Prototypes 55 | . . . . 1 1 2 . . . 4 . . . . 4 . 2 8 3 11 19 Parts Lost 33 | . . . . . 3 . 2 . . . . 2 . . . . 6 . . 2 18 Power 4 | . . . . . . . . . . . . . . . . . 1 . . . 3 Propulsion 11 | . . . . . 1 . 2 . . . . 1 . . . . 2 . . . 5 Utility 14 | . . . . . 2 . . . . . . . . . . . 1 . . 2 9 Weapon 4 | . . . . . . . . . . . . 1 . . . . 2 . . . 1 Highest Loss Streak 12 | . . . . . 3 . 2 . . . . 2 . . . . 4 . . 1 12 To Critical Strikes . | . . . . . . . . . . . . . . . . . . . . . . Average Backups 9 | . 4 5 8 18 9 4 5 9 9 9 10 9 10 10 9 10 8 8 8 8 2 Power 1 | . . 1 . 1 . 1 1 1 1 1 1 1 2 2 2 2 1 1 . 1 . Propulsion 1 | . . 1 2 4 1 . . . . . . . . . . . . . . 1 . Utility 4 | . . 1 1 6 3 2 3 6 6 6 8 6 7 7 7 7 5 4 2 2 . Weapon 1 | . 1 2 3 3 1 . . . . . . . . . . . . 1 1 1 . Tool/Special . | . . . . . . . . . . . . . . . . . . . . . . Unused Backups 38 | . . . . 9 9 1 1 . . 2 . 3 . . . . 3 4 1 1 4 Power 4 | . . . . 1 . . 1 . . . . . . . . . 1 . 1 . . Propulsion 6 | . . . . 2 . . . . . . . . . . . . . 2 . . 2 Utility 19 | . . . . 5 4 1 . . . 1 . 3 . . . . 2 2 . . 1 Weapon 3 | . . . . 1 2 . . . . . . . . . . . . . . . . Tool/Special 6 | . . . . . 3 . . . . 1 . . . . . . . . . 1 1 Average Slot Usage (%) 78 | . 79 85 91 63 55 92 85 75 76 82 94 88 84 84 87 94 92 89 90 90 80 Engine 1 | . . . 8 4 2 . . . . . . . . . . . . . . . . Core 1 | . . . . 1 1 5 5 5 5 4 . . . . . . . . . . 1 Reactor 2 | . . . . . . . . . . . 5 5 5 5 5 5 4 4 8 8 6 Wheel 7 | . . . 18 25 1 . . . . . . . . . . . . . . . . Flight 20 | . 25 28 9 . 11 23 29 29 29 30 41 32 31 31 31 36 32 33 30 29 25 Device 8 | . . . . . 5 9 8 9 11 11 11 10 10 10 9 10 10 13 17 17 21 Storage 6 | . . . 9 13 1 . 1 5 5 5 5 5 5 5 5 5 4 4 4 4 6 Processor 8 | . 12 14 4 . 12 23 23 18 17 17 17 10 10 10 10 10 9 9 8 12 7 Hackware 5 | . . . . . . . . . . . . 14 15 15 15 15 21 19 16 12 2 Protection 2 | . 13 14 11 . . . . . . . . . . . . . . . . . 1 Energy Cannon 3 | . . . 9 11 . . . . . . . . . . . . . . . . . Ballistic Gun 2 | . 14 14 5 3 . . . . . . . . . . . . . . . . . Impact Weapon 2 | . 12 14 12 1 . . . . . . . . . . . . . . . . . Slashing Weapon 2 | . . . . . 2 5 5 5 5 5 5 5 5 5 5 5 2 3 4 4 . Peak Build Rating 207 | 2 9 9 13 32 63 70 70 64 64 95 94 105 99 103 111 111 136 153 177 197 207 Average Rating 77 | 1 8 9 11 14 38 63 64 63 63 72 94 99 99 99 104 111 123 134 162 189 181 On Entrance 79 | . 2 9 9 13 32 63 64 62 64 64 94 94 99 99 99 111 111 133 146 177 195 Naked Turns . | . . . . . . . . . . . . . . . . . . . . . . Heaviest Build 217 | 3 6 6 213 217 59 10 21 21 20 31 31 37 29 29 31 31 36 53 53 52 60 Greatest Support 104 | 3 8 8 40 40 28 20 43 35 22 49 49 52 52 52 52 61 64 55 62 60 104 Greatest Overweight (x) 10 | . . . 10 9 2 . . . . . . . . . . . . . 1 1 1 Average Overweight (x) . | . . . . 5 . . . . . . . . . . . . . . . . . Largest Inventory Capacity 35 | 5 5 5 35 35 25 5 10 10 10 10 10 10 10 10 10 10 10 10 10 10 10 Average Capacity 15 | 5 5 5 13 32 11 5 6 10 10 10 10 10 10 10 10 10 10 10 10 10 10 Most Carried 25 | . 5 5 17 25 24 5 10 10 10 10 10 10 10 10 10 10 10 10 10 10 10 Average Carried 10 | . 4 4 8 19 9 4 5 8 9 9 10 9 10 10 9 10 9 9 9 9 6 Final Capacity 35 | 5 5 5 35 25 5 5 10 10 10 10 10 10 10 10 10 10 10 10 10 10 10 Final Carried 23 | . 5 5 16 23 5 5 10 9 10 10 10 10 10 10 10 10 10 10 10 9 . Class Distribution -------------------- 28% | Hacker-Scout 20% | Hauler-Mutant 20% | Mutant 10% | Scout 9% | Scavenger-Sprinter Dominant Class ---------------- Mutant | -10/Materials Mutant | -10/Mines Mutant | -10/Subcaves Hauler-Mutant | -7/Scraptown Derelict-Scout | -5/Factory Derelict-Scout | -5/Waste Scout | -5/Factory Scout | -5/Upper Caves Scout | -5/Upper Caves Scout | -5/Warlord Scout | -4/Proximity Caves Hacker-Scout | -4/Factory Hacker-Scout | -4/Upper Caves Hacker-Scout | -4/Upper Caves Hacker-Scout | -4/Zhirov Hacker-Scout | -3/Proximity Caves Hacker-Scout | -3/Research Hacker-Scout | -3/Quarantine Hacker-Scout | -2/Research Hacker-Scout | -2/Testing Scavenger-Sprinter | -2/Protoforge Resources | -11 -10 -10 -10 -7 -5 -5 -5 -5 -5 -5 -4 -4 -4 -4 -4 -3 -3 -3 -2 -2 -2 ----------- Run | Yrd Mat Min Sub Scr Fac Was Fac Upp Upp War Pro Fac Upp Upp Zhi Pro Res Qua Res Tes Frg Matter Collected 2881 | 220 96 . 176 160 185 40 100 . 62 90 . 90 . 10 . . 168 418 150 281 635 Remotely 20 | . . . . . . . . . . . . . . . . . . . . . 20 Salvage Created 1853 | . 165 . 178 . 148 . 192 . . . . 87 . . . . 168 572 41 144 158 Parts 93 | . 12 . 15 . 8 . 15 . . . . 4 . . . . 7 16 . 7 9 Haulers Intercepted 3 | . . . . . . . 1 . . . . . . . . . . 2 . . . Recyclers Shooed 2 | . 1 . . . . . . . . . . . . . . . . . . 1 . Parts Field Recycled . | . . . . . . . . . . . . . . . . . . . . . . Retrieved Matter . | . . . . . . . . . . . . . . . . . . . . . . Parts Self-Destructed 7 | . . . 2 . . . . . 1 . . . 4 . . . . . . . . Prevented . | . . . . . . . . . . . . . . . . . . . . . . Kills | -11 -10 -10 -10 -7 -5 -5 -5 -5 -5 -5 -4 -4 -4 -4 -4 -3 -3 -3 -2 -2 -2 ------- Run | Yrd Mat Min Sub Scr Fac Was Fac Upp Upp War Pro Fac Upp Upp Zhi Pro Res Qua Res Tes Frg Combat Hostiles Destroyed 12 | . 3 . 5 . 1 . . . . . . . . . . . . . . . 3 Melee 1 | . . . 1 . . . . . . . . . . . . . . . . . . Guns 4 | . 3 . 1 . . . . . . . . . . . . . . . . . . Cannons 4 | . . . 1 . . . . . . . . . . . . . . . . . 3 AOE 2 | . . . 2 . . . . . . . . . . . . . . . . . . Classes Destroyed 11 | . 4 . 1 . 3 . 1 . . . . . . . . . . 1 . . 1 Worker 2 | . . . . . . . . . . . . . . . . . . 1 . 1 . Builder 2 | . . . . . 1 . . . . . . . . . . . . 1 . . . Hauler 3 | . . . . . . . 1 . . . . . . . . . . 2 . . . Recycler 5 | . 1 . . . . . . . . . . . . . . . 1 2 . 1 . Mechanic 1 | . 1 . . . . . . . . . . . . . . . . . . . . Operator 5 | . . . . . 2 . 3 . . . . . . . . . . . . . . Watcher 10 | . 1 . . . 1 . . . . . . 2 . . . . 1 2 1 . 2 Swarmer 3 | . 3 . . . . . . . . . . . . . . . . . . . . Sentry 2 | . . . . . 1 . . . . . . . . . . . . . . . 1 Decapitator 2 | . . . . . . . . . . . . . . . . . . . . . 2 Subdweller 5 | . . . 5 . . . . . . . . . . . . . . . . . . Best Kill Streak 4 | . 3 . 2 . 2 . 1 . . . . 2 . . . . 1 4 1 1 2 Combat Bots Only 3 | . 3 . 2 . 1 . . . . . . . . . . . . . . . 2 Max Kills in Single Turn 2 | . 1 . 2 . 1 . 1 . . . . 1 . . . . 1 1 1 1 2 Gunslinging . | . . . . . . . . . . . . . . . . . . . . . . Exploded 1 | . . . 1 . . . . . . . . . . . . . . . . . . Melee 1 | . . . 1 . . . . . . . . . . . . . . . . . . Uniques/NPCs Destroyed . | . . . . . . . . . . . . . . . . . . . . . . Combat | -11 -10 -10 -10 -7 -5 -5 -5 -5 -5 -5 -4 -4 -4 -4 -4 -3 -3 -3 -2 -2 -2 -------- Run | Yrd Mat Min Sub Scr Fac Was Fac Upp Upp War Pro Fac Upp Upp Zhi Pro Res Qua Res Tes Frg Hostile Shots Fired 385 | . 24 . 8 . 66 . 40 . 3 . 6 8 . . . 1 34 6 43 13 133 Missed 171 | . 9 . 2 . 24 . 19 . 1 . 3 4 . . . . 11 4 23 5 66 Hits 214 | . 15 . 6 . 42 . 21 . 2 . 3 4 . . . 1 23 2 20 8 67 Melee 1 | . . . . . . . . . . . . . . . . . . . . . 1 Projectile 213 | . 15 . 6 . 42 . 21 . 2 . 3 4 . . . 1 23 2 20 8 66 Critical Strikes 12 | . . . . . 3 . . . . . . . . . . . 1 . . . 8 Part Disruptions 3 | . . . . . . . . . . . . . . . . . . 1 1 . 1 Damage Taken 5733 | . 147 . 125 . 802 . 364 . 40 . 62 123 . . . 20 504 124 472 269 2681 Core 981 | . 51 . 33 . 297 . 119 . 22 . 23 23 . . . . 50 . 75 . 288 Absorbed by Shields 60 | . . . . . . . . . . . . . . . . . . . . . 60 Redirected to Shielding 51 | . 9 . 7 . . . . . . . . . . . . . . . . . 35 Regen/Repaired (Parts) 880 | . 33 . . . 6 . 42 . . 25 . . . . . . 6 24 304 207 233 Core Remaining (%) 73 | 100 . . . 66 . . . . . . 53 . . . . 98 . 78 . . 43 Volleys Fired 57 | . 12 . 4 . 11 . . . . . . . . . . . . 13 . . 17 Largest 2 | . 1 . 2 . 1 . . . . . . . . . . . . 1 . . 1 Hottest 300 | . 20 . 110 . . . . . . . . . . . . . . 300 . . 300 Shots Fired 61 | . 12 . 8 . 11 . . . . . . . . . . . . 13 . . 17 Gun 15 | . 12 . 3 . . . . . . . . . . . . . . . . . . Cannon 31 | . . . 1 . . . . . . . . . . . . . . 13 . . 17 Launcher 4 | . . . 4 . . . . . . . . . . . . . . . . . . Special 11 | . . . . . 11 . . . . . . . . . . . . . . . . Kinetic 27 | . 12 . 3 . . . . . . . . . . . . . . 12 . . . Thermal 19 | . . . 1 . . . . . . . . . . . . . . 1 . . 17 Explosive 4 | . . . 4 . . . . . . . . . . . . . . . . . . Electromagnetic . | . . . . . . . . . . . . . . . . . . . . . . Impact 11 | . . . . . 11 . . . . . . . . . . . . . . . . Robot Hit Streak 13 | . 4 . 2 . 13 . . . . . . . . . . . . . . . . Robot Miss Streak 2 | . 2 . 2 . . . . . . . . . . . . . . . . . 1 Penetration Max 2 | . . . . . . . . . . . . . . . . . . . . . 2 Secondary Targets . | . . . . . . . . . . . . . . . . . . . . . . Shots Hit Robots 75 | . 12 . 5 . 16 . 6 . . . 1 9 . . . . 3 16 1 3 3 Core Hits 35 | . 5 . 6 . 3 . 3 . . . . 3 . . . . 2 7 1 1 4 Critical Kills 3 | . 1 . . . . . . . . . . . . . . . . . . . 2 Critical Parts Destroyed 4 | . . . . . 1 . . . . . . . . . . . . . . . 3 Critical Strikes 16 | . 1 . . . 2 . . . . . . 2 . . . . . 4 . . 7 Destroy 6 | . . . . . . . . . . . . . . . . . . . . . 6 Smash 3 | . 1 . . . 2 . . . . . . . . . . . . . . . . Sever 6 | . . . . . . . . . . . . 2 . . . . . 4 . . . Impale 1 | . . . . . . . . . . . . . . . . . . . . . 1 Melee Attacks 281 | . 9 2 14 . 19 . 31 4 3 . 5 43 . 4 . 2 38 41 23 23 20 Impact 25 | . 9 2 14 . . . . . . . . . . . . . . . . . . Slashing 228 | . . . . . 19 . 31 4 3 . 5 43 . 4 . 2 19 40 23 23 12 Piercing 28 | . . . . . . . . . . . . . . . . . 19 1 . . 8 Sneak Attacks 15 | . 2 . . . 2 . 1 . . . . . . . . . 1 6 1 2 . Combat Hostiles . | . . . . . . . . . . . . . . . . . . . . . . Follow-up Attacks . | . . . . . . . . . . . . . . . . . . . . . . Damage Inflicted 6605 | . 379 . 289 . 959 . 343 . . . 53 413 . . . . 269 1816 167 470 1447 Guns 163 | . 119 . 44 . . . . . . . . . . . . . . . . . . Cannons 1227 | . . . 27 . . . . . . . . . . . . . . . . . 1200 Explosions 173 | . . . 173 . . . . . . . . . . . . . . . . . . Melee 4396 | . 260 . 45 . 313 . 343 . . . 53 413 . . . . 269 1816 167 470 247 Ramming . | . . . . . . . . . . . . . . . . . . . . . . Kinetic 163 | . 119 . 44 . . . . . . . . . . . . . . . . . . Thermal 1227 | . . . 27 . . . . . . . . . . . . . . . . . 1200 Explosive 173 | . . . 173 . . . . . . . . . . . . . . . . . . Electromagnetic . | . . . . . . . . . . . . . . . . . . . . . . Impact 951 | . 260 . 45 . 646 . . . . . . . . . . . . . . . . Slashing 3866 | . . . . . 313 . 343 . . . 53 413 . . . . 184 1816 167 470 107 Piercing 225 | . . . . . . . . . . . . . . . . . 85 . . . 140 Highest Corruption 14 | . . . . . . . 2 2 2 . . . . . . . 1 1 1 1 14 Average Corruption 4 | . . . . . . . 1 2 1 . . . . . . . 1 1 1 1 9 Corruption Purged 2 | . . . . . . . . . 2 . . . . . . . . . . . . Corruption Blocked . | . . . . . . . . . . . . . . . . . . . . . . Effects 59 | . . . . . . . . 1 3 . . . . . . . 1 7 3 2 42 Message Errors 18 | . . . . . . . . . . . . . . . . . . 2 1 1 14 Matter Fused 10 | . . . . . . . . 1 1 . . . . . . . . . 1 . 7 Heat Flow Errors 12 | . . . . . . . . . 1 . . . . . . . . 4 . . 7 Energy Discharges 6 | . . . . . . . . . 1 . . . . . . . . 1 . 1 3 Parts Fused 1 | . . . . . . . . . . . . . . . . . 1 . . . . Data Loss (minor) 4 | . . . . . . . . . . . . . . . . . . . 1 . 3 Data Loss (major) 2 | . . . . . . . . . . . . . . . . . . . . . 2 Alerts 2 | . . . . . . . . . . . . . . . . . . . . . 2 Misdirections 4 | . . . . . . . . . . . . . . . . . . . . . 4 Overload Shots 1 | . . . . . . . . . . . . . . . . . . . . . 1 Overflow Damage 1359 | . 53 . . . 233 . 80 . . . 13 40 . . . . . 368 . 274 298 Projectiles 437 | . . . . . 139 . . . . . . . . . . . . . . . 298 Explosions . | . . . . . . . . . . . . . . . . . . . . . . Melee 922 | . 53 . . . 94 . 80 . . . 13 40 . . . . . 368 . 274 . Knockbacks 2 | . 2 . . . . . . . . . . . . . . . . . . . . Impact 2 | . 2 . . . . . . . . . . . . . . . . . . . . Kinetic . | . . . . . . . . . . . . . . . . . . . . . . Secondary . | . . . . . . . . . . . . . . . . . . . . . . Self-Inflicted Damage . | . . . . . . . . . . . . . . . . . . . . . . Shots . | . . . . . . . . . . . . . . . . . . . . . . Rammed . | . . . . . . . . . . . . . . . . . . . . . . Targets Rammed . | . . . . . . . . . . . . . . . . . . . . . . Kicked . | . . . . . . . . . . . . . . . . . . . . . . Crushed . | . . . . . . . . . . . . . . . . . . . . . . Highest Temperature 277 | . . . . . 3 . 54 . 267 226 169 200 86 94 119 255 273 230 93 112 277 Average Temperature 57 | . . . . . 3 . 22 . 149 81 59 45 27 30 48 70 79 92 48 31 82 Received Heat Transfer 597 | . 45 . 18 . 198 . 18 . 9 . 12 18 . . . . 78 . 27 72 102 Effects 1 | . . . . . . . . . . 1 . . . . . . . . . . . Energy Bleed 1 | . . . . . . . . . . 1 . . . . . . . . . . . Siege Activations . | . . . . . . . . . . . . . . . . . . . . . . Martial Activations . | . . . . . . . . . . . . . . . . . . . . . . Shielding Activations . | . . . . . . . . . . . . . . . . . . . . . . Robots Disrupted . | . . . . . . . . . . . . . . . . . . . . . . Combat Hostiles . | . . . . . . . . . . . . . . . . . . . . . . Robots Corrupted 2 | . 1 . . . 1 . . . . . . . . . . . . . . . . Combat Hostiles 1 | . . . . . 1 . . . . . . . . . . . . . . . . Parts Fried 3 | . . . . . 3 . . . . . . . . . . . . . . . . Impact Corruptions 6 | . 2 . . . 4 . . . . . . . . . . . . . . . . Robots Melted . | . . . . . . . . . . . . . . . . . . . . . . Combat Hostiles . | . . . . . . . . . . . . . . . . . . . . . . Parts Melted . | . . . . . . . . . . . . . . . . . . . . . . Heat Transferred 37 | . . . 37 . . . . . . . . . . . . . . . . . . Parts Sabotaged . | . . . . . . . . . . . . . . . . . . . . . . Parts Stolen . | . . . . . . . . . . . . . . . . . . . . . . Parts Stripped . | . . . . . . . . . . . . . . . . . . . . . . Power Chain Reactions . | . . . . . . . . . . . . . . . . . . . . . . Alert | -11 -10 -10 -10 -7 -5 -5 -5 -5 -5 -5 -4 -4 -4 -4 -4 -3 -3 -3 -2 -2 -2 ------- Run | Yrd Mat Min Sub Scr Fac Was Fac Upp Upp War Pro Fac Upp Upp Zhi Pro Res Qua Res Tes Frg Maximum Alert Level 4 | . . . . . . . 1 . . . . 1 . . . . 1 . 1 1 4 Low Security (%) 76 | 100 100 100 . . 100 100 92 . . . . 94 . . . . 95 100 61 65 27 Level 1 7 | . . . . . . . 7 . . . . 5 . . . . 4 . 38 34 5 Level 2 3 | . . . . . . . . . . . . . . . . . . . . . 14 Level 3 6 | . . . . . . . . . . . . . . . . . . . . . 25 Level 4 6 | . . . . . . . . . . . . . . . . . . . . . 26 Level 5 . | . . . . . . . . . . . . . . . . . . . . . . High Security . | . . . . . . . . . . . . . . . . . . . . . . Max Security . | . . . . . . . . . . . . . . . . . . . . . . Peak Influence 1137 | . 125 . . . 116 18 375 . . . . 351 . . . . 216 73 334 307 1137 Initial 331 | . . . . . . 18 . . . . . 331 . . . . . 36 37 9 158 Average 198 | . 18 . . . 43 10 56 . . . . 36 . . . . 89 38 141 124 644 Influence Increases 5663 | . 192 . . . 361 . 620 . 75 280 60 664 . . . 60 532 269 503 446 1601 Destroy 0b10 Robot/C 420 | . 60 . . . 20 . . . . 220 . 60 . . . . . . . . 60 Destroy 0b10 Robot/NC 140 | . 15 . . . 20 . 20 . . . . 10 . . . . 10 40 5 10 10 Destroy Leader 66 | . 12 . . . 12 . 2 . . . . 4 . . . . 2 8 2 . 24 Successful Hack 419 | . 25 . . . 19 . 48 . . . . 69 . . . . 83 40 58 34 43 Disable Machine 375 | . . . . . 30 . 30 . . . . 15 . . . . . 135 . 60 105 Anti-Garrison Action 150 | . . . . . . . . . . . . . . . . . . . . . 150 Destroy Structure 523 | . 5 . . . 20 . 40 . . . . 56 . . . . 62 46 63 42 189 Advance Influence 300 | . . . . . . . . . . . . 300 . . . . . . . . . Partial Spotted 555 | . . . . . 30 . 120 . . . . 15 . . . . 120 . 90 90 90 Lose Combat Pursuer 2715 | . 75 . . . 210 . 360 . 75 60 60 135 . . . 60 255 . 285 210 930 Influence Decreases 4560 | . 192 . . . 308 53 253 187 145 314 86 661 53 . . 60 468 266 552 182 780 Entered New Map 623 | . . . . . . 35 . 137 35 110 76 19 20 . . . . 28 30 9 124 Time Decay 2459 | . 192 . . . 181 18 165 50 110 124 10 208 33 . . 60 238 238 183 153 496 Lost Part 296 | . . . . . 25 . 20 . . . . 11 . . . . 60 . . 20 160 Lost Ally 200 | . . . . . . . . . . 80 . 80 . . . . 20 . 20 . . Purge Threat 982 | . . . . . 102 . 68 . . . . 343 . . . . 150 . 319 . . Squads Dispatched 68 | . 1 . . . 12 . 8 . . . . 11 . . . . 9 2 13 4 8 Investigation 42 | . 1 . . . 7 . 7 . . . . 9 . . . . 6 . 8 1 3 Extermination 15 | . . . . . 1 . 1 . . . . 2 . . . . 3 2 3 2 1 Reinforcement 8 | . . . . . 1 . . . . . . . . . . . . . 2 1 4 Assault 2 | . . . . . 2 . . . . . . . . . . . . . . . . Garrison 1 | . . . . . 1 . . . . . . . . . . . . . . . . Intercept . | . . . . . . . . . . . . . . . . . . . . . . Searches Triggered . | . . . . . . . . . . . . . . . . . . . . . . Construction Impeded 1 | . . . . . 1 . . . . . . . . . . . . . . . . Haulers Reinforced . | . . . . . . . . . . . . . . . . . . . . . . Active Scanning Responses . | . . . . . . . . . . . . . . . . . . . . . . Cargo Convoy Interrupts . | . . . . . . . . . . . . . . . . . . . . . . Stealth | -11 -10 -10 -10 -7 -5 -5 -5 -5 -5 -5 -4 -4 -4 -4 -4 -3 -3 -3 -2 -2 -2 --------- Run | Yrd Mat Min Sub Scr Fac Was Fac Upp Upp War Pro Fac Upp Upp Zhi Pro Res Qua Res Tes Frg Distress Signals 21 | . 1 . . . . . 2 . . . . . . . . . 3 . 2 2 11 Communications Jammed . | . . . . . . . . . . . . . . . . . . . . . . Distress Signals . | . . . . . . . . . . . . . . . . . . . . . . Times Spotted 320 | . 11 . 5 . 17 . 32 . 4 20 7 16 . 3 . 4 30 7 26 16 122 Peak Tracking Total 15 | . 6 . 2 . 6 . 12 . 5 12 8 5 . 3 . 4 9 3 13 8 15 Tactical Retreats 62 | . 1 . . . 8 . 7 . 1 1 1 4 . . . 1 7 . 7 5 19 Traps | -11 -10 -10 -10 -7 -5 -5 -5 -5 -5 -5 -4 -4 -4 -4 -4 -3 -3 -3 -2 -2 -2 ------- Run | Yrd Mat Min Sub Scr Fac Was Fac Upp Upp War Pro Fac Upp Upp Zhi Pro Res Qua Res Tes Frg Traps Triggered 16 | . 1 . . . 1 . . . . . . 1 . . . . 1 1 2 . 9 Indirectly . | . . . . . . . . . . . . . . . . . . . . . . Trap Hack Attempts . | . . . . . . . . . . . . . . . . . . . . . . Triggered . | . . . . . . . . . . . . . . . . . . . . . . Disarmed . | . . . . . . . . . . . . . . . . . . . . . . Reprogrammed . | . . . . . . . . . . . . . . . . . . . . . . Reused . | . . . . . . . . . . . . . . . . . . . . . . Traps Extracted . | . . . . . . . . . . . . . . . . . . . . . . Installed . | . . . . . . . . . . . . . . . . . . . . . . Triggered . | . . . . . . . . . . . . . . . . . . . . . . Most Traps Carried 3 | . . . . 3 3 . . . . . . . . . . . . . . . . Machines | -11 -10 -10 -10 -7 -5 -5 -5 -5 -5 -5 -4 -4 -4 -4 -4 -3 -3 -3 -2 -2 -2 ---------- Run | Yrd Mat Min Sub Scr Fac Was Fac Upp Upp War Pro Fac Upp Upp Zhi Pro Res Qua Res Tes Frg Machines Disabled 31 | . . . . . 2 . 2 . . 3 . 1 . . . . . 9 . 5 9 Max in Single Turn 2 | . . . . . 1 . 1 . . 1 . 1 . . . . . 2 . 1 2 Garrison Access 9 | . . . . . 1 . . . . . . 3 . . . . 2 . 1 1 1 Machines Repaired . | . . . . . . . . . . . . . . . . . . . . . . Machines Dismantled 1 | . . . . . . . . . . 1 . . . . . . . . . . . Machines Sabotaged . | . . . . . . . . . . . . . . . . . . . . . . Overloaded Fab Kills . | . . . . . . . . . . . . . . . . . . . . . . Hacking | -11 -10 -10 -10 -7 -5 -5 -5 -5 -5 -5 -4 -4 -4 -4 -4 -3 -3 -3 -2 -2 -2 --------- Run | Yrd Mat Min Sub Scr Fac Was Fac Upp Upp War Pro Fac Upp Upp Zhi Pro Res Qua Res Tes Frg Machines Accessed 168 | . 8 . . 12 12 . 21 1 . 9 . 25 1 1 9 . 18 13 18 11 9 Terminals 77 | . 7 . . . 5 . 10 . . . . 10 . 1 . . 9 11 8 9 7 Fabricators 9 | . . . . . 1 . 2 . . . . 2 . . . . 2 . 2 . . Repair Stations 10 | . 1 . . . 2 . 1 . . . . 1 . . . . 1 1 2 1 . Recycling Units 24 | . . . . . 3 . 5 . . . . 6 . . . . 4 . 4 . 2 Scanalyzers 6 | . . . . . . . 3 . . . . 2 . . . . . . 1 . . Garrison Access 10 | . . . . . 1 . . . . . . 4 . . . . 2 1 1 1 . Total Hacks 514 | . 27 . . 90 19 . 49 1 . 22 . 79 1 1 48 . 55 28 46 31 17 Successful 379 | . 13 . . 90 11 . 26 1 . 22 . 50 1 1 48 . 37 15 31 19 14 Failed 134 | . 14 . . . 8 . 23 . . . . 28 . . . . 18 13 15 12 3 Catastrophic 20 | . 1 . . . 4 . 5 . . . . 3 . . . . 3 2 . 2 . Database Lockouts 1 | . . . . . . . . . . . . 1 . . . . . . . . . Manual 253 | . 27 . . . 14 . 35 . . . . 46 . . . . 40 19 33 27 12 Terminals 257 | . 25 . . . 10 . 29 . . . . 51 . 1 . . 44 25 31 28 13 Fabricators 15 | . . . . . 1 . 4 . . . . 3 . . . . 3 . 4 . . Repair Stations 13 | . 2 . . . 2 . 1 . . . . 1 . . . . 1 1 3 2 . Recycling Units 33 | . . . . . 4 . 7 . . . . 8 . . . . 4 . 6 . 4 Scanalyzers 19 | . . . . . . . 8 . . . . 10 . . . . . . 1 . . Garrison Access 15 | . . . . . 2 . . . . . . 6 . . . . 3 2 1 1 . Terminal Hacks 214 | . 4 . . 90 2 . 2 1 . 22 . 9 1 1 48 . 13 4 5 5 7 Record 148 | . . . . 89 . . . . . 15 . . . 1 36 . . 3 . . 4 Part Schematic 10 | . . . . . . . . . . . . 2 . . 4 . 4 . . . . Robot Schematic 1 | . 1 . . . . . . . . . . . . . . . . . . . . Robot Analysis 9 | . 3 . . . . . . . . . . . . . 4 . . . . 2 . Prototype ID Bank 10 | . . . . . . . . . . 5 . 1 . . 4 . . . . . . Open Door 4 | . . . . . . . . 1 . 2 . . 1 . . . . . . . . Branch Access Points 3 | . . . . . . . 1 . . . . . . . . . 1 . 1 . . Machine Index 1 | . . . . . . . . . . . . 1 . . . . . . . . . Terminal Index 3 | . . . . . . . . . . . . 1 . . . . . . . 1 1 Fabricator Index 1 | . . . . . . . . . . . . . . . . . 1 . . . . Recycling Unit Index 3 | . . . . . . . . . . . . . . . . . 1 . . 1 1 Alert Level 4 | . . . . . . . . . . . . 1 . . . . 2 1 . . . Unreport Threat 10 | . . . . . 2 . 1 . . . . 3 . . . . 1 . 3 . . Locate Traps 2 | . . . . . . . . . . . . . . . . . 1 . 1 . . Recall Extermination 1 | . . . . . . . . . . . . . . . . . 1 . . . . Zone Layout 2 | . . . . . . . . . . . . . . . . . 1 . . 1 . Proto ID Catalog 2 | . . . . 1 . . . . . . . . . . . . . . . . 1 Fabricator Hacks 9 | . . . . . . . 3 . . . . 1 . . . . 1 . 4 . . Network Status 1 | . . . . . . . . . . . . . . . . . 1 . . . . Load Schematic 5 | . . . . . . . 2 . . . . 1 . . . . . . 2 . . Build 3 | . . . . . . . 1 . . . . . . . . . . . 2 . . Repair Station Hacks . | . . . . . . . . . . . . . . . . . . . . . . Recycling Unit Hacks . | . . . . . . . . . . . . . . . . . . . . . . Scanalyzer 16 | . . . . . . . 7 . . . . 8 . . . . . . 1 . . Insert Component 10 | . . . . . . . 4 . . . . 5 . . . . . . 1 . . Analyze 6 | . . . . . . . 3 . . . . 3 . . . . . . . . . Garrison Access Hacks 7 | . . . . . . . . . . . . 3 . . . . 2 . 1 1 . Seal Access 7 | . . . . . . . . . . . . 3 . . . . 2 . 1 1 . Unauthorized Hacks 133 | . 9 . . . 9 . 14 . . . . 29 . . . . 21 11 20 13 7 Terminals 97 | . 8 . . . 3 . 8 . . . . 21 . . . . 15 11 14 12 5 Track 11 | . . . . . . . . . . . . 4 . . . . . 2 1 . 4 Assimilate 12 | . . . . . . . . . . . . 4 . . . . 2 2 3 1 . Botnet 39 | . 3 . . . 2 . 3 . . . . 7 . . . . 7 6 4 6 1 Operators 4 | . . . . . . . . . . . . 1 . . . . 1 1 1 . . Skim 31 | . 5 . . . 1 . 5 . . . . 5 . . . . 5 . 5 5 . Fabricators 5 | . . . . . 1 . 1 . . . . 2 . . . . 1 . . . . Liberate 2 | . . . . . . . . . . . . 1 . . . . 1 . . . . Recompile 3 | . . . . . 1 . 1 . . . . 1 . . . . . . . . . Repair Stations 9 | . 1 . . . 2 . 1 . . . . 1 . . . . 1 . 2 1 . Patch 9 | . 1 . . . 2 . 1 . . . . 1 . . . . 1 . 2 1 . Recycling Units 22 | . . . . . 3 . 4 . . . . 5 . . . . 4 . 4 . 2 Fedlink 22 | . . . . . 3 . 4 . . . . 5 . . . . 4 . 4 . 2 Scanalyzers . | . . . . . . . . . . . . . . . . . . . . . . Garrison Access . | . . . . . . . . . . . . . . . . . . . . . . Data Cores Recovered 2 | . . . . . 1 . 1 . . . . . . . . . . . . . . Used 1 | . . . . . 1 . . . . . . . . . . . . . . . . Hacking Detections 89 | . 7 . . . 6 . 15 . . . . 14 . . . . 10 11 12 8 6 Full Trace Events 8 | . 1 . . . 1 . 1 . . . . 2 . . . . 1 . 1 . 1 Feedback Events 1 | . . . . . . . 1 . . . . . . . . . . . . . . Corruption 1 | . . . . . . . 1 . . . . . . . . . . . . . . Feedback Blocked . | . . . . . . . . . . . . . . . . . . . . . . Robot Schematics Acquired 1 | . 1 . . . . . . . . . . . . . . . . . . . . Robots Built . | . . . . . . . . . . . . . . . . . . . . . . Authchips . | . . . . . . . . . . . . . . . . . . . . . . Time . | . . . . . . . . . . . . . . . . . . . . . . Total Robot Build Rating . | . . . . . . . . . . . . . . . . . . . . . . Part Schematics Acquired 15 | . . . . . . . 3 . . . . 5 . . 4 . 3 . . . . Parts Built 5 | . . . . . . . 2 . . . . . . . . . . . 3 . . Authchips 2 | . . . . . . . 1 . . . . . . . . . . . 1 . . Time 128 | . . . . . . . 24 . . . . . . . . . . . 104 . . Total Part Build Rating 20 | . . . . . . . 6 . . . . . . . . . . . 14 . . Parts Repaired . | . . . . . . . . . . . . . . . . . . . . . . Time . | . . . . . . . . . . . . . . . . . . . . . . Parts Recycled . | . . . . . . . . . . . . . . . . . . . . . . Recycled Matter . | . . . . . . . . . . . . . . . . . . . . . . Retrieved Matter . | . . . . . . . . . . . . . . . . . . . . . . Retrieved Components . | . . . . . . . . . . . . . . . . . . . . . . Parts Scanalyzed 6 | . . . . . . . 3 . . . . 3 . . . . . . . . . Part Schematics Acquired 6 | . . . . . . . 3 . . . . 3 . . . . . . . . . Parts Damaged 2 | . . . . . . . . . . . . 2 . . . . . . . . . Bothacking | -11 -10 -10 -10 -7 -5 -5 -5 -5 -5 -5 -4 -4 -4 -4 -4 -3 -3 -3 -2 -2 -2 ------------ Run | Yrd Mat Min Sub Scr Fac Was Fac Upp Upp War Pro Fac Upp Upp Zhi Pro Res Qua Res Tes Frg Used RIF Installer . | . . . . . . . . . . . . . . . . . . . . . . Robots Hacked . | . . . . . . . . . . . . . . . . . . . . . . Non-combat . | . . . . . . . . . . . . . . . . . . . . . . Combat . | . . . . . . . . . . . . . . . . . . . . . . Robot Hacks Applied . | . . . . . . . . . . . . . . . . . . . . . . Relay Couplers Released 3 | . . . . . 1 . . . . . . . . . . . . . . . 2 Machine Destruction 3 | . . . . . 1 . . . . . . . . . . . . . . . 2 Fabnet Peak Effective % . | . . . . . . . . . . . . . . . . . . . . . . Robots Rewired 5 | . . . . . . . . . . 5 . . . . . . . . . . . Allies Hacked . | . . . . . . . . . . . . . . . . . . . . . . Hacks Repelled . | . . . . . . . . . . . . . . . . . . . . . . Allies | -11 -10 -10 -10 -7 -5 -5 -5 -5 -5 -5 -4 -4 -4 -4 -4 -3 -3 -3 -2 -2 -2 -------- Run | Yrd Mat Min Sub Scr Fac Was Fac Upp Upp War Pro Fac Upp Upp Zhi Pro Res Qua Res Tes Frg Total Allies 15 | . . . . . . . . . . 5 . 5 . . . . 2 . 2 1 . Largest Group 5 | . . . . . . . . . . 5 . 3 . . . . 1 . 1 1 . Highest-Rated Group 210 | . . . . . . . . . . 210 . 141 . . . . 26 . 26 26 . Highest-Rated Ally 47 | . . . . . . . . . . 46 . 47 . . . . 26 . 26 26 . Total Orders 1 | . . . . . . . . . . 1 . . . . . . . . . . . STAY 1 | . . . . . . . . . . 1 . . . . . . . . . . . Ally Attacks 72 | . . . . . . . . . . 54 . 18 . . . . . . . . . Total Damage 2674 | . . . . . . . . . . 2368 . 306 . . . . . . . . . Kills 14 | . . . . . . . . . . 11 . 3 . . . . . . . . . Allies Corrupted 1 | . . . . . . . . . . 1 . . . . . . . . . . . Allies Melted 3 | . . . . . . . . . . 1 . . . . . . . . . . 2 Intel | -11 -10 -10 -10 -7 -5 -5 -5 -5 -5 -5 -4 -4 -4 -4 -4 -3 -3 -3 -2 -2 -2 ------- Run | Yrd Mat Min Sub Scr Fac Was Fac Upp Upp War Pro Fac Upp Upp Zhi Pro Res Qua Res Tes Frg Active Infowar (turns) 7764 | . 1052 18 117 35 244 46 462 106 233 650 128 644 190 179 67 380 502 506 472 326 1407 Optics 2823 | . . . . 35 244 46 462 106 233 650 128 1 . . . . . . . 303 615 Sensors 5667 | . . . . . 164 43 290 103 233 643 128 644 190 179 64 380 478 506 472 326 824 Terrain 5109 | . . . . . 196 46 365 104 160 650 128 644 190 179 62 380 497 445 465 262 336 Machine Analysis 1187 | . 1052 18 117 . . . . . . . . . . . . . . . . . . Cloaking 1558 | . . . . . . . . . . 2 . . . . . . 27 4 30 88 1407 ECM 1 | . . . . . 1 . . . . . . . . . . . . . . . . Robot Analysis Total 9 | . 3 . . . . . . . . . . . . . 4 . . . . 2 . Derelict Logs Recovered 10 | . . . . 5 . . . 1 2 . 1 . . 1 . . . . . . . Drone Launches . | . . . . . . . . . . . . . . . . . . . . . . Drone Recoveries . | . . . . . . . . . . . . . . . . . . . . . . Exploration | -11 -10 -10 -10 -7 -5 -5 -5 -5 -5 -5 -4 -4 -4 -4 -4 -3 -3 -3 -2 -2 -2 ------------- Run | Yrd Mat Min Sub Scr Fac Was Fac Upp Upp War Pro Fac Upp Upp Zhi Pro Res Qua Res Tes Frg Turns Passed 11273 | 16 1199 18 390 2872 424 46 462 106 233 650 128 644 190 179 67 380 502 506 472 326 1463 Spaces Moved 18280 | 26 329 29 323 1684 677 113 1141 281 376 905 292 1433 351 299 201 402 1444 1473 1300 1160 4041 Core 161 | 26 135 . . . . . . . . . . . . . . . . . . . . Treads . | . . . . . . . . . . . . . . . . . . . . . . Legs 25 | . . . . . . . . . . . . . . . . . . . . . 25 Wheels 1937 | . . . 160 1684 93 . . . . . . . . . . . . . . . . Hover 4 | . . . . . 3 . 1 . . . . . . . . . . . . . . Flight 16153 | . 194 29 163 . 581 113 1140 281 376 905 292 1433 351 299 201 402 1444 1473 1300 1160 4016 Fastest Speed 6 | 50 37 37 37 85 31 31 20 26 28 17 17 17 21 21 17 7 7 19 7 14 6 Average Speed 35 | 50 42 37 80 165 44 31 27 27 28 24 17 19 21 21 20 16 17 19 16 14 18 Slowest Speed 220 | 50 50 37 210 220 130 31 60 28 28 28 17 24 21 21 27 17 20 19 92 94 170 Overloaded Moves 238 | . . . . . . . . . . . . . . . . 17 17 . 37 . 167 Propulsion Burnouts . | . . . . . . . . . . . . . . . . . . . . . . Robots Hopped 96 | . 3 . . . 9 . 7 1 . . . 11 . 1 . . 9 18 3 6 28 Potential Cave-ins 46 | . . . . . . . . . . . . . . . . . . 6 . . 40 Cave-ins Triggered 2 | . . . . . . . . . . . . . . . . . . . . . 2 Teleports 3 | . . . . . . . . . . . . . . . . . . 2 . . 1 Exploration Rate (%) 56 | 4 71 11 30 87 23 84 40 64 69 95 59 42 68 58 62 58 45 81 37 92 71 Regions Visited 21 Branch Regions 14 Pre-discovered Areas 16 | . 1 . . 8 1 . 1 . . . . 1 . . 3 . 1 . . . . Known Exits Taken 17 | . 1 1 . 1 . . 1 1 1 1 1 1 1 1 1 1 1 1 1 1 . Unknown Exits Taken 2 | 1 . . 1 . . . . . . . . . . . . . . . . . . Scrap Searched 14 | . . 1 . 6 . . . . 4 . 1 . . 2 . . . . . . . Spaces Dug 223 | . 5 . 9 . 10 . 20 4 3 . 3 28 . 4 . 2 31 23 21 14 46 Terrain Destroyed 293 | . 5 . 22 . 10 . 20 4 3 . 3 28 . 4 . 2 31 30 21 14 96 Melee 186 | . 5 . 9 . 10 . 20 4 3 . 3 28 . 4 . 2 31 18 21 14 14 Projectile 94 | . . . . . . . . . . . . . . . . . . 12 . . 82 AOE 13 | . . . 13 . . . . . . . . . . . . . . . . . . Terrain Rammed . | . . . . . . . . . . . . . . . . . . . . . . Walls Destroyed . | . . . . . . . . . . . . . . . . . . . . . . Machines Disabled . | . . . . . . . . . . . . . . . . . . . . . . Actions | -11 -10 -10 -10 -7 -5 -5 -5 -5 -5 -5 -4 -4 -4 -4 -4 -3 -3 -3 -2 -2 -2 --------- Run | Yrd Mat Min Sub Scr Fac Was Fac Upp Upp War Pro Fac Upp Upp Zhi Pro Res Qua Res Tes Frg Total 22337 | 27 1353 32 416 1765 743 124 1236 301 498 1323 362 1716 466 407 224 711 1609 1590 1507 1267 4660 Wait 3037 | . 995 . 40 4 11 . 47 13 115 378 66 223 116 104 5 308 107 21 149 40 295 Move 18076 | 25 322 28 322 1683 660 112 1126 278 375 904 291 1412 350 296 200 401 1426 1436 1293 1148 3988 Hop 85 | . 3 . . . 8 . 7 1 . . . 9 . 1 . . 8 18 3 5 22 Pick Up 128 | . 5 1 15 43 5 2 7 1 1 1 . 6 . . 1 . 4 14 5 1 16 Fast Attach 162 | 2 5 . 3 10 16 4 4 . 2 6 . 3 . 1 9 . 10 11 8 21 47 Attach 46 | . 1 . 2 3 4 . 2 2 . . . 4 . . 1 . 3 8 5 1 10 Detach 26 | . 1 . 2 3 . . 2 . . 1 . 1 . . . . 1 2 2 2 9 Swap 49 | . . . 9 2 2 . 3 . . 3 . 3 . . . . 6 4 7 5 5 Drop 181 | . . 1 5 17 7 6 7 2 2 5 . 9 . 1 7 . 6 22 12 21 51 Fire 57 | . 12 . 4 . 11 . . . . . . . . . . . . 13 . . 17 Melee 281 | . 9 2 14 . 19 . 31 4 3 . 5 43 . 4 . 2 38 41 23 23 20 Ram . | . . . . . . . . . . . . . . . . . . . . . . Kick . | . . . . . . . . . . . . . . . . . . . . . . Crush . | . . . . . . . . . . . . . . . . . . . . . . Escape Stasis 83 | . . . . . . . . . . . . 3 . . . . . . . . 80 Rewire 17 | . . . . . . . . . . 17 . . . . . . . . . . . Trap . | . . . . . . . . . . . . . . . . . . . . . . Miscellaneous 109 | . . . . . . . . . . 8 . . . . 1 . . . . . 100 Route ------- -11/Scrapyard -10/Materials (discovered 5 exits: *Mat x3 / *Min / Sub) -10/Mines (discovered 2 exits: Exi / *Sub) -10/Subcaves (discovered 2 exits: [*Mat] / *Scr) -7/Scraptown (discovered 2 exits: *Fac x2) -5/Factory (discovered 5 exits: Fac x2 / *Upp / Ext x2) -5/Waste -5/Factory (discovered 6 exits: *Fac x2 / *Upp x2 / Ext x2) -5/Upper Caves -5/Upper Caves (discovered 2 exits: *Fac / *War) -5/Warlord -4/Proximity Caves -4/Factory (discovered 6 exits: *Res x3 / *Upp x2 / Arm) -4/Upper Caves -4/Upper Caves (discovered 2 exits: *Res / *Zhi) -4/Zhirov -3/Proximity Caves -3/Research (discovered 5 exits: Res x3 / *Qua x2) -3/Quarantine -2/Research (discovered 5 exits: Acc x3 / *Tes x2) -2/Testing (discovered 3 exits: *Acc / *Sec / *Frg) -2/Protoforge 0bPrime History --------- Turn | Location | Event 8 | -11/Scrapyard | Discovered new exit (range 16) 17 | -11/Scrapyard | Entered Materials 69 | -10/Materials | Discovered new exit (range 16) 136 | -10/Materials | Discovered new exit (range 16) 187 | -10/Materials | Discovered new exit (range 16) 203 | -10/Materials | Discovered new exit (range 11) 268 | -10/Materials | Identified exit to Materials 268 | -10/Materials | Identified exit to Subcaves 268 | -10/Materials | Identified exit to Mines 318 | -10/Materials | Build established: Mutant 335 | -10/Materials | Learned 4 Subcaves zone layouts 393 | -10/Materials | Learned location of 2 exits from Mines 477 | -10/Materials | Learned location of Mines (-9) 517 | -10/Materials | Learned 4 Subcaves zone layouts 543 | -10/Materials | Learned 4 Subcaves zone layouts 1216 | -10/Materials | Entered Mines 1217 | -10/Mines | Identified exit to Exiles 1234 | -10/Mines | Entered Subcaves 1235 | -10/Subcaves | Approached by a straggling Scientist 1248 | -10/Subcaves | Shifting Twisted Machinery released Mak. Light Armor Plating 1263 | -10/Subcaves | Shifting Twisted Machinery released Sub. Machine Gun 1406 | -10/Subcaves | Discovered new exit (range 6) 1490 | -10/Subcaves | A swath of the cavern ceiling suddenly collapsed 1615 | -10/Subcaves | Scientist uncovered a shortcut to Scraptown 1624 | -10/Subcaves | Entered Scraptown 1672 | -7/Scraptown | Visited Cave Peace 1732 | -7/Scraptown | Visited Cyclists 1768 | -7/Scraptown | Visited Assassins FH 1818 | -7/Scraptown | Build established: Hauler-Mutant 1891 | -7/Scraptown | Scanned Subdweller tech in exchange for log data 1893 | -7/Scraptown | Learned location of 1 exit from Research 1894 | -7/Scraptown | Learned Research terminal intel 1895 | -7/Scraptown | Learned Factory trap positions 1896 | -7/Scraptown | Learned Factory terminal intel 1897 | -7/Scraptown | Learned location of Warlord (-5) 1947 | -7/Scraptown | Discovered new exit (range 13) 2152 | -7/Scraptown | Visited UFD Registry 2152 | -7/Scraptown | Registered with UFD as "Gearsink" 2171 | -7/Scraptown | Visited CPS Storage 2245 | -7/Scraptown | Visited Symbiants 2280 | -7/Scraptown | Visited Spacefarers 2394 | -7/Scraptown | Entered Cyclist Reading Room 2397 | -7/Scraptown | Learned location of Zion (-7) 2490 | -7/Scraptown | Guru changed UFD alias to "Hellsink" 3279 | -7/Scraptown | Visited Awakened 3471 | -7/Scraptown | Visited Science Guys 3566 | -7/Scraptown | Visited Chapter 10 3839 | -7/Scraptown | Visited DA-N13 Charitable Foundation 3859 | -7/Scraptown | Found DCF Scrap (30 items) 3978 | -7/Scraptown | Visited Scrap Suit Storage 4011 | -7/Scraptown | Visited Junk Repository 4042 | -7/Scraptown | Visited Junk Cannon Lab 4051 | -7/Scraptown | Found Prototype Special Weapon 4051 | -7/Scraptown | Identified Junk Cannon 4072 | -7/Scraptown | Visited A0-MCA Data Center 4090 | -7/Scraptown | Visited LU-1G1's Boring Crew 4142 | -7/Scraptown | Visited Cartography Club 4169 | -7/Scraptown | Found Surveybot 17 Chip 4183 | -7/Scraptown | Build established: Mutant 4217 | -7/Scraptown | Learned location of Recycling (-7) 4217 | -7/Scraptown | Learned location of Hub_04(d) (-5) 4217 | -7/Scraptown | Learned location of Armory (-4) 4217 | -7/Scraptown | Learned 8 Factory zone layouts 4217 | -7/Scraptown | Learned 8 Research zone layouts 4217 | -7/Scraptown | Learned 12 Research zone layouts 4217 | -7/Scraptown | Learned 16 Research zone layouts 4217 | -7/Scraptown | Learned 4 Access zone layouts 4217 | -7/Scraptown | Learned 4 Mines zone layouts 4217 | -7/Scraptown | Learned 20 Lower Caves zone layouts 4217 | -7/Scraptown | Learned 20 Proximity Caves zone layouts 4217 | -7/Scraptown | Learned Storage emergency access door positions 4217 | -7/Scraptown | Learned location of 2 exits from Factory 4217 | -7/Scraptown | Learned location of 2 exits from Research 4217 | -7/Scraptown | Learned location of 1 exit from Lower Caves 4217 | -7/Scraptown | Identified exit to Factory 4271 | -7/Scraptown | Given a C- rating by A0-MCA 4277 | -7/Scraptown | Found A0-MCA's Component Scanner 4421 | -7/Scraptown | Met Optimus 4421 | -7/Scraptown | Accepted into 0bPrime 4496 | -7/Scraptown | Entered Factory 4496 | -5/Factory | Evolved 10 slots: Propulsion x6, Utility x4 4497 | -5/Factory | Identified exit to Factory 4498 | -5/Factory | Identified exit to Extension 4499 | -5/Factory | Loaded intel: 81 trap records 4500 | -5/Factory | Loaded intel: 27 terminal locations 4561 | -5/Factory | Garrison activated, responded to threat 4690 | -5/Factory | Lost 3 parts (1n2u) 4745 | -5/Factory | Discovered new exit (range 11) 4752 | -5/Factory | Discovered exit to Extension (range 13) 4761 | -5/Factory | Loaded intel: 8 recycling unit locations 4801 | -5/Factory | Learned location of Protoforge (-2) 4920 | -5/Factory | Sucked down chute 4920 | -5/Factory | Entered Waste 4920 | -5/Waste | The area was eerily silent 4930 | -5/Waste | Found Prototype Device 4930 | -5/Waste | Identified Exp. Actuator Array 4945 | -5/Waste | Discovered new exit (range 22) 4964 | -5/Waste | Identified exit to Factory 4966 | -5/Waste | Entered Factory 4992 | -5/Factory | Discovered new exit (range 20) 5054 | -5/Factory | Discovered exit to Factory (range 11) 5104 | -5/Factory | Discovered exit to Factory (range 5) 5212 | -5/Factory | Fabricated Cesium-ion Thruster (x2) 5235 | -5/Factory | Build established: Scout 5294 | -5/Factory | Loaded intel: 112 trap records 5295 | -5/Factory | Loaded intel: 8 recycling unit locations 5337 | -5/Factory | Learned Research repair station intel 5337 | -5/Factory | Identified exit to Upper Caves 5368 | -5/Factory | Learned Testing trap positions 5389 | -5/Factory | Learned 4 Research zone layouts 5402 | -5/Factory | Learned Factory trap positions 5407 | -5/Factory | Learned Armory emergency access door positions 5408 | -5/Factory | Learned 2 Extension zone layouts 5428 | -5/Factory | Entered Upper Caves 5437 | -5/Upper Caves | Identified exit to Upper Caves 5449 | -5/Upper Caves | Spotted B-75 Beast 5458 | -5/Upper Caves | Encountered a Warlord checkpoint 5534 | -5/Upper Caves | Entered another Upper Caves area 5544 | -5/Upper Caves | Entered a destroyed Warlord outpost 5550 | -5/Upper Caves | Discovered exit to Factory (range 10) 5551 | -5/Upper Caves | Learned Factory emergency access door positions 5574 | -5/Upper Caves | Learned 8 Factory zone layouts 5584 | -5/Upper Caves | Encountered a Warlord checkpoint 5763 | -5/Upper Caves | Discovered new exit (range 16) 5767 | -5/Upper Caves | Identified exit to Warlord 5767 | -5/Upper Caves | Entered Warlord 5820 | -5/Warlord | Learned Research fabricator intel 5820 | -5/Warlord | Learned 4 Research zone layouts 5820 | -5/Warlord | Learned 4 Testing zone layouts 5821 | -5/Warlord | Learned Armory stockpile data 5936 | -5/Warlord | Visited the Vortex Lab 5938 | -5/Warlord | Found Prototype Energy Gun 5938 | -5/Warlord | Identified Vortex Rifle 5951 | -5/Warlord | Rebuked by Warlord 5953 | -5/Warlord | Warlord's base attacked by MAIN.C 6303 | -5/Warlord | Warlord forces counterattacked 6331 | -5/Warlord | Found Prototype Device 6331 | -5/Warlord | Identified Exp. Cloaking Device 6336 | -5/Warlord | Found Prototype Processor 6361 | -5/Warlord | Spotted Executioner 6372 | -5/Warlord | Spotted Executioner 6399 | -5/Warlord | Opened side exit 6416 | -5/Warlord | Discovered new exit (range 8) 6417 | -5/Warlord | Identified exit to Proximity Caves 6417 | -5/Warlord | Entered Proximity Caves 6440 | -4/Proximity Caves | Lost 3 allies 6451 | -4/Proximity Caves | Learned Research terminal intel 6509 | -4/Proximity Caves | Spotter reported a threat 6518 | -4/Proximity Caves | Spotter reported a threat 6545 | -4/Proximity Caves | Entered Factory 6545 | -4/Factory | Evolved 2 slots: Utility x2 6546 | -4/Factory | Identified exit to Research 6546 | -4/Factory | Identified exit to Armory 6547 | -4/Factory | Identified exit to Upper Caves 6548 | -4/Factory | Loaded intel: 103 trap records 6605 | -4/Factory | Loaded intel: 8 recycling unit locations 6676 | -4/Factory | Identified Exp. Armor Integrity Analyzer 6678 | -4/Factory | Spotted B-86 Titan 6797 | -4/Factory | Discovered exit to Upper Caves (range 19) 6844 | -4/Factory | Build established: Hacker-Scout 6869 | -4/Factory | Central database locked down 6942 | -4/Factory | Learned Testing emergency access door positions 7003 | -4/Factory | Learned Quarantine machine intel 7054 | -4/Factory | Learned Research fabricator intel 7128 | -4/Factory | Learned Testing stockpile data 7170 | -4/Factory | Learned Armory trap positions 7189 | -4/Factory | Entered Upper Caves 7372 | -4/Upper Caves | Discovered new exit (range 21) 7379 | -4/Upper Caves | Identified exit to Upper Caves 7379 | -4/Upper Caves | Entered another Upper Caves area 7381 | -4/Upper Caves | Discovered exit to Research (range 15) 7438 | -4/Upper Caves | Encountered a Warlord checkpoint 7472 | -4/Upper Caves | Discovered new exit (range 19) 7542 | -4/Upper Caves | Learned Research emergency access door positions 7558 | -4/Upper Caves | Identified exit to Zhirov 7558 | -4/Upper Caves | Entered Zhirov 7558 | -4/Zhirov | Discovered new exit (range 3) 7562 | -4/Zhirov | Met Zhirov 7566 | -4/Zhirov | Learned location of Quarantine (-3) 7566 | -4/Zhirov | Learned location of Testing (-2) 7566 | -4/Zhirov | Learned location of Command (-1) 7568 | -4/Zhirov | Zhirov requested help retrieving the SGEMP Prototype 7572 | -4/Zhirov | Found Alien Artifact 7572 | -4/Zhirov | Identified Integrated Reactor 7572 | -4/Zhirov | Installed Integrated Reactor, increased core energy generation (+10) 7579 | -4/Zhirov | Found Alien Artifact 7619 | -4/Zhirov | Identified exit to Proximity Caves 7625 | -4/Zhirov | Entered Proximity Caves 7944 | -3/Proximity Caves | Spotted B-86 Titan 7987 | -3/Proximity Caves | Discovered exit to Research (range 15) 8005 | -3/Proximity Caves | Entered Research 8005 | -3/Research | Evolved 2 slots: Utility x2 8006 | -3/Research | Identified exit to Research 8006 | -3/Research | Identified exit to Quarantine 8009 | -3/Research | Loaded intel: 19 terminal locations 8010 | -3/Research | Loaded intel: 4 fabricator locations 8011 | -3/Research | Loaded intel: 4 repair station locations 8086 | -3/Research | Loaded intel: 5 recycling unit locations 8132 | -3/Research | Learned location of 1 exit from Testing 8300 | -3/Research | Learned Quarantine scanalyzer intel 8339 | -3/Research | Learned Research emergency access door positions 8358 | -3/Research | Lost 4 parts (1p1n1u1w) 8369 | -3/Research | Loaded intel: 63 trap records 8454 | -3/Research | Learned Quarantine terminal intel 8476 | -3/Research | Spotted B-86 Titan 8507 | -3/Research | Entered Quarantine 8509 | -3/Quarantine | Loaded intel: 64 machine locations 8510 | -3/Quarantine | Loaded intel: 17 terminal locations 8511 | -3/Quarantine | Loaded intel: 1 scanalyzer location 8813 | -3/Quarantine | Found Alien Slashing Weapon 8832 | -3/Quarantine | Found Alien Energy Cannon 8832 | -3/Quarantine | Identified Core Cannon 8835 | -3/Quarantine | Identified Sigix Broadsword 8860 | -3/Quarantine | Found Alien Artifact 8860 | -3/Quarantine | Identified Transdimensional Reconstructor (x2) 8860 | -3/Quarantine | Warped through subspace 8873 | -3/Quarantine | Found Alien Artifact 8904 | -3/Quarantine | Found Alien Artifact 8904 | -3/Quarantine | Identified Dimensional Node Initializer 8904 | -3/Quarantine | Initialized slip node 8907 | -3/Quarantine | Found Alien Artifact 8907 | -3/Quarantine | Identified Hpw. Transdimensional Reconstructor 8907 | -3/Quarantine | Warped through subspace to slip node 8910 | -3/Quarantine | Identified Subatomic Replicator 8910 | -3/Quarantine | Used Subatomic Replicator to create Alien Artifact 8918 | -3/Quarantine | Found Dimensional Node Initializer 8924 | -3/Quarantine | Found Transdimensional Reconstructor 8966 | -3/Quarantine | Found Alien Artifact 8966 | -3/Quarantine | Identified Phase Redirector 9013 | -3/Quarantine | Entered Research 9013 | -2/Research | Evolved 2 slots: Power x1, Utility x1 9014 | -2/Research | Identified exit to Access 9016 | -2/Research | Loaded intel: 22 terminal locations 9017 | -2/Research | Loaded intel: 4 fabricator locations 9103 | -2/Research | Identified exit to Testing 9109 | -2/Research | Identified Supercharged TR 9131 | -2/Research | Spotted B-90 Cyclops 9189 | -2/Research | Loaded intel: 5 recycling unit locations 9293 | -2/Research | Learned Access recycling unit intel 9301 | -2/Research | Fabricated Imp. Propulsion Shielding? 9373 | -2/Research | Learned 4 Access zone layouts 9444 | -2/Research | Learned 4 Access zone layouts 9456 | -2/Research | Fabricated Imp. Diametric Drive (x1) 9482 | -2/Research | Learned location of 1 exit from Research 9485 | -2/Research | Entered Testing 9487 | -2/Testing | Identified exit to Section 7 9489 | -2/Testing | Loaded intel: 16 trap records 9501 | -2/Testing | Found Prototype Device 9501 | -2/Testing | Identified Exp. Hardlight Generator 9508 | -2/Testing | Found Prototype Processor 9508 | -2/Testing | Identified Spectral Analyzer 9551 | -2/Testing | Found Prototype Hackware 9551 | -2/Testing | Identified Exp. System Shield 9563 | -2/Testing | Found Prototype Device 9563 | -2/Testing | Identified Thermal Barrier 9616 | -2/Testing | Found Prototype Hackware 9616 | -2/Testing | Identified System Mapper 9629 | -2/Testing | Spotted PG-BU43404CJ2 9668 | -2/Testing | Learned 4 Access zone layouts 9715 | -2/Testing | Found Prototype Device 9715 | -2/Testing | Identified Exp. Transmission Jammer 9717 | -2/Testing | Learned Research terminal intel 9754 | -2/Testing | Learned Access emergency access door positions 9766 | -2/Testing | Found Prototype Energy Gun 9766 | -2/Testing | Identified Warp Gun 9780 | -2/Testing | Learned Research emergency access door positions 9797 | -2/Testing | Learned Research recycling unit intel 9800 | -2/Testing | Spotted Fortress 9810 | -2/Testing | Discovered new exit (range 6) 9810 | -2/Testing | Identified exit to Protoforge 9811 | -2/Testing | Entered Protoforge 9811 | -2/Protoforge | Spotted B-90 Cyclops 9898 | -2/Protoforge | Spotted Hotshot 9898 | -2/Protoforge | Spotted Hotshot 10007 | -2/Protoforge | Superfortress began startup sequence 10018 | -2/Protoforge | Spotted Overlord 10018 | -2/Protoforge | Spotted AP7-3 10018 | -2/Protoforge | Spotted AP7-3 10020 | -2/Protoforge | Spotted EXE-6 10020 | -2/Protoforge | Spotted EXE-6 10020 | -2/Protoforge | Spotted SKR-2 10020 | -2/Protoforge | Spotted Hotshot 10020 | -2/Protoforge | Spotted SKR-2 10021 | -2/Protoforge | Spotted Hotshot 10021 | -2/Protoforge | Spotted SKR-2 10030 | -2/Protoforge | UFD initiated attack on Protoforge 10030 | -2/Protoforge | Loaded intel: 3 recycling unit locations 10033 | -2/Protoforge | Spotted EXE-6 10033 | -2/Protoforge | Spotted EXE-6 10041 | -2/Protoforge | Initialized slip node 10070 | -2/Protoforge | Warped through subspace to slip node 10071 | -2/Protoforge | Optimus attacked Superfortress 10071 | -2/Protoforge | Optimus greeted in Protoforge 10076 | -2/Protoforge | Spotted Striker 10080 | -2/Protoforge | Spotted Decapitator 10093 | -2/Protoforge | Found Prototype Ballistic Gun 10093 | -2/Protoforge | Identified Cep. XC Strikerail 10096 | -2/Protoforge | Found Cep. XC Strikerail 10099 | -2/Protoforge | Found Prototype Processor 10099 | -2/Protoforge | Identified Exp. Core Analyzer 10102 | -2/Protoforge | Lost 12 parts (2p5n4u1w) 10103 | -2/Protoforge | Found Prototype Device 10103 | -2/Protoforge | Identified Exp. Kinecellerator 10126 | -2/Protoforge | Found UFD Drillbomb 10162 | -2/Protoforge | Met 7R-MNS 10167 | -2/Protoforge | Found UFD Drillbomb 10169 | -2/Protoforge | Lost 28 allies 10192 | -2/Protoforge | Additional patrols dispatched to research labs 10202 | -2/Protoforge | Lost 3 allies 10223 | -2/Protoforge | Spotted Decapitator 10224 | -2/Protoforge | Spotted Immortal 10224 | -2/Protoforge | Spotted Immortal 10256 | -2/Protoforge | Spotted Decapitator 10262 | -2/Protoforge | Spotted Hotshot 10262 | -2/Protoforge | Destroyed Decapitator 10262 | -2/Protoforge | Destroyed Decapitator 10263 | -2/Protoforge | Spotted Hotshot 10278 | -2/Protoforge | Crushed by falling debris 10281 | -2/Protoforge | Spotted Executioner 10293 | -2/Protoforge | Core integrity fell below 50% 10319 | -2/Protoforge | Spotted Hotshot 10319 | -2/Protoforge | Spotted Hotshot 10320 | -2/Protoforge | Spotted Hotshot 10357 | -2/Protoforge | Found Prototype Device 10357 | -2/Protoforge | Identified Exp. Trap Extractor 10376 | -2/Protoforge | Spotted V465-k 10376 | -2/Protoforge | Spotted V242-u 10426 | -2/Protoforge | Crushed by falling debris 10427 | -2/Protoforge | System corruption reached 10% 10429 | -2/Protoforge | Spotted Hotshot 10430 | -2/Protoforge | Found Prototype Device 10430 | -2/Protoforge | Identified Crosscalibrator 10432 | -2/Protoforge | Found Cep. Core Shell 10433 | -2/Protoforge | Found Cep. Core Shell 10447 | -2/Protoforge | Spotted Executioner 10447 | -2/Protoforge | Spotted Striker 10464 | -2/Protoforge | Found Prototype Energy Cannon 10464 | -2/Protoforge | Identified Cld. Nova Cannon 10467 | -2/Protoforge | Found UFD Drillbomb 10488 | -2/Protoforge | Installed UFD Drillbomb at designated target 10488 | -2/Protoforge | UFD reported confirmed Drillbomb installation 10499 | -2/Protoforge | Installed UFD Drillbomb at designated target 10499 | -2/Protoforge | UFD reported confirmed Drillbomb installation 10500 | -2/Protoforge | Found UFD Drillbomb 10502 | -2/Protoforge | Spotted Striker 10513 | -2/Protoforge | Installed UFD Drillbomb at designated target 10513 | -2/Protoforge | UFD reported confirmed Drillbomb installation 10561 | -2/Protoforge | Found UFD Drillbomb 10598 | -2/Protoforge | Spotted Executioner 10600 | -2/Protoforge | Spotted Executioner 10617 | -2/Protoforge | Spotted Executioner 10667 | -2/Protoforge | Found Prototype Device 10667 | -2/Protoforge | Identified Cep. Matter Streamer 10674 | -2/Protoforge | Spotted Executioner 10682 | -2/Protoforge | Found Cep. Zero-point Core 10706 | -2/Protoforge | Found Cep. Chromion Battery 10714 | -2/Protoforge | Spotted Executioner 10714 | -2/Protoforge | Spotted Striker 10714 | -2/Protoforge | Spotted Executioner 10779 | -2/Protoforge | Spotted Executioner 10805 | -2/Protoforge | Spotted Striker 10805 | -2/Protoforge | Spotted Striker 10816 | -2/Protoforge | Installed UFD Drillbomb at designated target 10816 | -2/Protoforge | UFD reported confirmed Drillbomb installation 10841 | -2/Protoforge | Found Prototype Storage 10841 | -2/Protoforge | Identified Cep. NT7 Matterbank 10856 | -2/Protoforge | Spotted Striker 10881 | -2/Protoforge | Found UFD Drillbomb 10953 | -2/Protoforge | Installed UFD Drillbomb at designated target 10953 | -2/Protoforge | UFD reported confirmed Drillbomb installation 10981 | -2/Protoforge | Spotted Striker 10997 | -2/Protoforge | Installed UFD Drillbomb at designated target 10997 | -2/Protoforge | UFD reported confirmed Drillbomb installation 11020 | -2/Protoforge | Found UFD Drillbomb 11033 | -2/Protoforge | Installed UFD Drillbomb at designated target 11033 | -2/Protoforge | UFD reported confirmed Drillbomb installation 11037 | -2/Protoforge | Found UFD Drillbomb 11062 | -2/Protoforge | Installed UFD Drillbomb at designated target 11062 | -2/Protoforge | UFD reported confirmed Drillbomb installation 11074 | -2/Protoforge | Build established: Scavenger-Sprinter 11088 | -2/Protoforge | Found UFD Drillbomb 11104 | -2/Protoforge | Spotted Striker 11139 | -2/Protoforge | Installed UFD Drillbomb at designated target 11139 | -2/Protoforge | UFD reported confirmed Drillbomb installation 11151 | -2/Protoforge | Found UFD Drillbomb 11174 | -2/Protoforge | Installed UFD Drillbomb at designated target 11174 | -2/Protoforge | UFD reported confirmed Drillbomb installation 11175 | -2/Protoforge | UFD began Drillbomb countdown 11275 | *** | Defending 0bPrime! Last Messages --------------- 11246_ N-04 Retriever inserts Plexus Tether into Forge Plexus. 11258_ PMAKZHQ4TQU =8F% LSQ 7BWU